bitfinex/quotes_BTCUSD_20250123
["timestamp","ask_amount","ask_price","bid_price","bid_amount"]
[1737592633395,0.14668377,103430.0,103420.0,0.18668735]
[1737592633597,0.14668377,103430.0,103420.0,0.28338035]
[1737592633928,0.14764712,103430.0,103420.0,0.18768735]
[1737592634440,0.16764712,103430.0,103420.0,0.09914006]
[1737592634922,0.16668377,103430.0,103420.0,0.09914006]
[1737592636199,0.16668377,103430.0,103420.0,0.01974006]
[1737592636437,0.16764712,103430.0,103420.0,0.01009904]
[1737592637610,0.14764712,103430.0,103420.0,0.01009904]
[1737592637817,0.09764712,103430.0,103420.0,0.01009904]
[1737592639032,0.14764712,103430.0,103420.0,0.01009904]
[1737592639228,0.14768377,103430.0,103420.0,0.10744633]
[1737592639451,0.14768377,103430.0,103420.0,0.16308735]
[1737592639452,0.14864712,103430.0,103420.0,0.16308735]
[1737592639661,0.16864712,103430.0,103420.0,0.01874006]
[1737592639865,0.17064712,103430.0,103420.0,0.01874006]
[1737592640026,0.16868377,103430.0,103420.0,0.01874006]
[1737592640436,0.16868377,103430.0,103420.0,0.01974006]
[1737592640640,0.16668377,103430.0,103420.0,0.01874006]
[1737592641069,0.16868377,103430.0,103420.0,0.01874006]
[1737592641890,0.14868377,103430.0,103420.0,0.11608735]
[1737592642770,0.14668377,103430.0,103420.0,0.29158035]
[1737592642906,0.14768377,103430.0,103420.0,0.19488735]
[1737592643105,0.14768377,103430.0,103420.0,0.19588735]
[1737592643308,0.14864712,103430.0,103420.0,0.19588735]
[1737592643592,0.14764712,103430.0,103420.0,0.19588735]
[1737592643928,0.14764712,103430.0,103420.0,0.19488735]
[1737592644148,0.14764712,103430.0,103420.0,0.09754006]
[1737592644559,0.14668377,103430.0,103420.0,0.19488735]
[1737592644765,0.14668377,103430.0,103420.0,0.19588735]
[1737592645986,0.14668377,103430.0,103420.0,0.19488735]
[1737592646412,0.14668377,103430.0,103420.0,0.19588735]
[1737592646536,0.14668377,103430.0,103420.0,0.19488735]
[1737592646979,0.14668377,103430.0,103420.0,0.19588735]
[1737592647158,0.14682627,103430.0,103420.0,0.19588735]
[1737592647997,0.09682627,103430.0,103420.0,0.19588735]
[1737592648436,0.00014327,103430.0,103420.0,0.40018494]
[1737592648630,0.00023623,103430.0,103420.0,0.59718494]
[1737592648843,0.00014327,103430.0,103420.0,0.59718494]
[1737592649179,0.00023623,103430.0,103420.0,0.62729177]
[1737592649789,0.00023623,103430.0,103420.0,0.62629177]
[1737592650001,0.00023623,103430.0,103420.0,0.63129177]
[1737592650205,0.00023623,103430.0,103420.0,2.13129177]
[1737592650530,0.00023623,103430.0,103420.0,2.10118494]
[1737592651048,0.00023623,103430.0,103420.0,2.13126997]
[1737592651289,0.00014327,103430.0,103420.0,2.13126997]
[1737592651763,0.00023623,103430.0,103420.0,2.13126997]
[1737592652381,0.00014327,103430.0,103420.0,2.13126997]
[1737592652774,0.00023623,103430.0,103420.0,2.13126997]
[1737592653377,0.00014327,103430.0,103420.0,2.13126997]
[1737592653788,0.00023623,103430.0,103420.0,2.13126997]
[1737592655072,0.00014327,103430.0,103420.0,2.15426997]
[1737592655276,0.00014327,103430.0,103420.0,1.06187456]
[1737592655489,0.00014327,103430.0,103420.0,0.95426997]
[1737592655692,0.00014327,103430.0,103420.0,2.45426997]
[1737592655911,0.00014327,103430.0,103420.0,2.45326997]
[1737592656358,0.00014327,103430.0,103420.0,2.45126997]
[1737592656693,0.00014327,103430.0,103420.0,2.44926997]
[1737592657104,0.00114327,103430.0,103420.0,2.45826997]
[1737592658056,0.00114327,103430.0,103420.0,2.46026997]
[1737592659133,0.00114327,103430.0,103420.0,2.16026997]
[1737592661208,0.00114327,103430.0,103420.0,2.15146997]
[1737592661364,0.00114327,103430.0,103420.0,2.16026997]
[1737592662189,0.00114327,103430.0,103420.0,0.66026997]
[1737592662358,0.00114327,103430.0,103420.0,0.96026997]
[1737592662589,0.00114327,103430.0,103420.0,2.46026997]
[1737592663581,0.00114327,103430.0,103420.0,2.5877816]
[1737592663848,0.00114327,103430.0,103420.0,1.0877816]
[1737592664204,0.00114327,103430.0,103420.0,2.5877816]
[1737592665369,0.00114327,103430.0,103420.0,2.48017701]
[1737592667394,0.00114327,103430.0,103420.0,2.46026997]
[1737592667615,0.00114327,103430.0,103420.0,2.16026997]
[1737592667959,0.00114327,103430.0,103420.0,2.46026997]
[1737592668896,0.00114327,103430.0,103420.0,2.48017701]
[1737592671803,0.00114327,103430.0,103420.0,2.46026997]
[1737592672224,0.00114327,103430.0,103420.0,2.13726997]
[1737592672593,0.00114327,103430.0,103420.0,2.16026997]
[1737592674118,0.00114327,103430.0,103420.0,2.46026997]
[1737592674612,0.00114327,103430.0,103420.0,2.16026997]
[1737592675656,0.00114327,103430.0,103420.0,2.15146997]
[1737592675859,0.00114327,103430.0,103420.0,2.15990997]
[1737592678866,0.00114327,103430.0,103420.0,2.15146997]
[1737592679064,0.00123623,103430.0,103420.0,1.85266997]
[1737592679263,0.00123623,103430.0,103420.0,0.14837238]
[1737592679264,0.14642627,103430.0,103420.0,0.14837238]
[1737592679474,0.14642627,103430.0,103420.0,0.15681238]
[1737592679475,0.22978962,103430.0,103420.0,0.15681238]
[1737592679674,0.22882627,103430.0,103420.0,1.77672735]
[1737592679875,0.22882627,103430.0,103420.0,0.27672735]
[1737592680207,0.22882627,103430.0,103420.0,0.22342035]
[1737592680401,0.22782627,103430.0,103420.0,0.36242035]
[1737592680612,0.22782627,103430.0,103420.0,0.21242035]
[1737592681029,0.22782627,103430.0,103420.0,0.36242035]
[1737592681235,0.22782627,103430.0,103420.0,0.36442035]
[1737592681901,0.22882627,103430.0,103420.0,0.37142035]
[1737592682184,0.22882627,103430.0,103420.0,0.36298035]
[1737592682411,0.22882627,103430.0,103420.0,0.37142035]
[1737592682587,0.22882627,103430.0,103420.0,0.40155885]
[1737592683335,0.13214327,103430.0,103420.0,0.50916344]
[1737592683562,0.00123623,103430.0,103420.0,0.50916344]
[1737592684524,0.00123623,103430.0,103420.0,2.00916344]
[1737592687852,0.00123623,103430.0,103420.0,2.03216344]
[1737592688399,0.00123623,103430.0,103420.0,2.00916344]
[1737592689595,0.09782627,103430.0,103420.0,1.75155885]
[1737592690000,0.09782627,103430.0,103420.0,0.40155885]
[1737592690777,0.09878962,103430.0,103420.0,0.39311885]
[1737592690990,0.09878962,103430.0,103420.0,0.40155885]
[1737592693021,0.09878962,103430.0,103420.0,0.37142035]
[1737592693941,0.09782627,103430.0,103420.0,0.47902494]
[1737592694163,0.09782627,103430.0,103420.0,0.50915857]
[1737592695161,0.09878962,103430.0,103420.0,0.50915857]
[1737592695516,0.09878962,103430.0,103420.0,0.47902494]
[1737592695897,0.09878962,103430.0,103420.0,0.37142035]
[1737592696731,0.17458962,103430.0,103420.0,0.11628735]
[1737592696951,0.24298962,103430.0,103420.0,0.02738006]
[1737592697154,0.47697815,103430.0,103420.0,0.01894006]
[1737592697361,0.57697815,103430.0,103420.0,0.00929904]
[1737592697592,0.67432544,103430.0,103420.0,0.00929904]
[1737592697963,0.57597815,103430.0,103420.0,0.00229904]
[1737592698590,0.57597815,103430.0,103420.0,0.00029904]
[1737592699041,0.57997815,103430.0,103420.0,0.00029904]
[1737592699640,0.57997815,103430.0,103400.0,0.09523568]
[1737592699641,0.272502,103410.0,103400.0,0.09523568]
[1737592699884,0.33010736,103410.0,103400.0,0.08679568]
[1737592700969,0.22255307,103410.0,103400.0,0.00029862]
[1737592701180,0.33015766,103410.0,103400.0,0.00029862]
[1737592701581,0.22255307,103410.0,103400.0,0.00029862]
[1737592701708,0.33015766,103410.0,103400.0,0.00429862]
[1737592701923,0.38411436,103410.0,103400.0,0.00429862]
[1737592702317,0.22255307,103410.0,103400.0,0.00429862]
[1737592703001,0.22355307,103410.0,103400.0,0.00429862]
[1737592704092,0.22355307,103410.0,103400.0,0.00029862]
[1737592704606,0.29355307,103410.0,103400.0,0.00029862]
[1737592704803,0.27355307,103410.0,103400.0,0.00029862]
[1737592704951,0.22355307,103410.0,103400.0,0.00029862]
[1737592705349,0.22355307,103410.0,103400.0,0.00455886]
[1737592706393,0.32090036,103410.0,103400.0,0.00455886]
[1737592706973,0.57850495,103410.0,103400.0,0.00455886]
[1737592707201,0.78345683,103410.0,103400.0,0.00455886]
[1737592708138,0.67585224,103410.0,103400.0,0.00455886]
[1737592708293,0.68471929,103410.0,103400.0,0.00455886]
[1737592708698,0.68771929,103410.0,103400.0,0.00455886]
[1737592708893,0.69371929,103410.0,103400.0,0.00455886]
[1737592713348,0.82432388,103410.0,103400.0,0.00455886]
[1737592713549,0.82432388,103410.0,103390.0,0.00029904]
[1737592713550,0.372511,103400.0,103390.0,0.00029904]
[1737592713728,0.67481094,103400.0,103390.0,0.00029904]
[1737592714620,0.67581094,103400.0,103390.0,0.00029904]
[1737592715019,0.67481094,103400.0,103390.0,0.00029904]
[1737592715643,0.67781094,103400.0,103390.0,0.00029904]
[1737592716413,0.68281094,103400.0,103390.0,0.00029904]
[1737592720712,0.70178471,103400.0,103390.0,0.00029904]
[1737592722775,0.46948554,103400.0,103390.0,0.00029904]
[1737592722951,0.20281177,103400.0,103390.0,0.00029904]
[1737592723152,0.12567512,103400.0,103390.0,0.00029904]
[1737592723354,0.12471177,103400.0,103390.0,0.00029904]
[1737592724697,0.12567512,103400.0,103390.0,0.00029904]
[1737592725023,0.12471177,103400.0,103390.0,0.00029904]
[1737592725156,0.10471177,103400.0,103390.0,0.09764633]
[1737592725535,0.10567512,103400.0,103390.0,0.09764633]
[1737592726359,0.10067512,103400.0,103390.0,0.09764633]
[1737592726565,0.09767512,103400.0,103390.0,0.10208392]
[1737592726729,0.09671177,103400.0,103390.0,0.19980492]
[1737592726938,0.09671177,103400.0,103390.0,0.10308392]
[1737592727168,9.373e-05,103400.0,103390.0,0.19980492]
[1737592727297,9.373e-05,103400.0,103390.0,0.38640951]
[1737592727498,9.373e-05,103400.0,103390.0,0.53640951]
[1737592729244,7.7e-07,103400.0,103390.0,0.60460951]
[1737592729495,7.7e-07,103400.0,103390.0,2.13465656]
[1737592729690,7.7e-07,103400.0,103390.0,2.13965656]
[1737592730278,7.7e-07,103400.0,103390.0,0.63465656]
[1737592730708,0.00100077,103400.0,103390.0,0.64365656]
[1737592730918,0.00100077,103400.0,103390.0,0.65339615]
[1737592732117,0.00100077,103400.0,103390.0,2.15339615]
[1737592735163,0.00109373,103400.0,103390.0,2.13039615]
[1737592738482,0.00109373,103400.0,103390.0,2.1083491]
[1737592738678,0.00109373,103400.0,103390.0,2.13837031]
[1737592738877,0.00109373,103400.0,103390.0,2.1083491]
[1737592739080,0.00100077,103400.0,103390.0,2.4313491]
[1737592739289,0.00100077,103400.0,103390.0,2.46136735]
[1737592739487,0.00100077,103400.0,103390.0,2.9739404]
[1737592739839,0.00100077,103400.0,103390.0,2.94167475]
[1737592740244,0.00100077,103400.0,103390.0,2.93967475]
[1737592740669,0.00114327,103400.0,103390.0,2.94267475]
[1737592740798,0.00214327,103400.0,103390.0,2.95167475]
[1737592744267,0.00214327,103400.0,103390.0,2.9216565]
[1737592744688,0.00214327,103400.0,103390.0,3.10925461]
[1737592745126,0.00214327,103400.0,103390.0,3.12916165]
[1737592745334,5.03e-05,103410.0,103400.0,0.76521804]
[1737592745335,3e-07,103410.0,103400.0,0.76521804]
[1737592745491,9.25e-05,103420.0,103410.0,0.46520904]
[1737592745704,0.2901825,103420.0,103410.0,1.18096631]
[1737592745898,0.2708435,103420.0,103410.0,2.68633163]
[1737592746137,0.2708435,103420.0,103410.0,2.71859728]
[1737592746493,0.2708435,103420.0,103410.0,2.82620187]
[1737592746995,0.2708435,103420.0,103410.0,2.80393622]
[1737592749590,0.0001425,103430.0,103420.0,0.75419759]
[1737592749791,0.0001425,103430.0,103420.0,0.8611859]
[1737592749991,0.0001425,103430.0,103420.0,0.86651732]
[1737592750197,0.0001425,103430.0,103420.0,2.36651732]
[1737592750198,0.2902125,103430.0,103420.0,2.36651732]
[1737592750802,0.2902125,103430.0,103420.0,2.36851732]
[1737592752612,0.2902125,103430.0,103420.0,2.37551732]
[1737592754224,0.2902125,103430.0,103420.0,2.38534612]
[1737592756818,0.2902125,103430.0,103420.0,2.08534612]
[1737592757024,0.29030546,103430.0,103420.0,0.33544612]
[1737592757260,0.5181955,103430.0,103420.0,0.22601273]
[1737592757437,0.5181955,103430.0,103420.0,0.48361732]
[1737592758138,0.5181955,103430.0,103420.0,0.27731973]
[1737592758318,0.5181955,103430.0,103420.0,0.12131973]
[1737592758522,0.5181955,103430.0,103420.0,0.12731973]
[1737592758815,0.5181955,103430.0,103420.0,0.12031973]
[1737592759038,0.5181955,103430.0,103420.0,0.21701273]
[1737592759291,0.5181955,103430.0,103420.0,0.49761732]
[1737592759292,0.2912125,103430.0,103420.0,0.49761732]
[1737592759495,0.2912125,103430.0,103420.0,0.57571732]
[1737592759876,0.2902125,103430.0,103420.0,2.07571732]
[1737592760194,0.2902125,103430.0,103420.0,2.10772728]
[1737592761368,0.2902125,103430.0,103420.0,2.10572728]
[1737592761768,0.2902125,103430.0,103420.0,2.11272728]
[1737592761988,0.2902125,103430.0,103420.0,2.11472728]
[1737592762706,0.2902125,103430.0,103420.0,2.04648972]
[1737592762918,0.29030546,103430.0,103420.0,2.02378897]
[1737592763573,0.2902125,103430.0,103420.0,2.02378897]
[1737592764477,0.2902125,103430.0,103420.0,2.01678897]
[1737592764855,0.2902125,103430.0,103420.0,2.02078897]
[1737592765050,0.2902125,103430.0,103420.0,2.02178897]
[1737592765952,0.2902125,103430.0,103420.0,0.52178897]
[1737592766360,0.2902125,103430.0,103420.0,2.02178897]
[1737592766566,0.2902125,103430.0,103420.0,2.04075179]
[1737592766719,0.2902125,103430.0,103420.0,2.03275179]
[1737592767063,0.2902125,103430.0,103420.0,2.04079179]
[1737592767288,0.2902125,103430.0,103420.0,2.06379179]
[1737592767501,0.2902125,103430.0,103420.0,0.56379179]
[1737592768039,0.2902125,103430.0,103420.0,2.06379179]
[1737592769629,0.2902125,103430.0,103420.0,2.49130342]
[1737592769803,0.2902125,103430.0,103420.0,2.38369883]
[1737592771936,0.2902125,103430.0,103420.0,2.36379179]
[1737592772139,0.2902125,103430.0,103420.0,2.06379179]
[1737592772340,0.2902125,103430.0,103420.0,1.91113908]
[1737592772552,0.2902125,103430.0,103420.0,2.01242312]
[1737592775238,0.2902125,103430.0,103420.0,0.51242312]
[1737592775563,0.3724125,103430.0,103420.0,2.01242312]
[1737592776774,0.2902125,103430.0,103420.0,2.01242312]
[1737592780636,0.2902125,103430.0,103420.0,2.00783208]
[1737592784348,0.3724125,103430.0,103420.0,2.00783208]
[1737592789200,0.3724125,103430.0,103420.0,1.84881653]
[1737592789201,0.5150955,103430.0,103420.0,1.84881653]
[1737592789402,0.5150955,103430.0,103420.0,1.65255894]
[1737592789606,0.5150955,103430.0,103420.0,0.1346565]
[1737592789759,0.5150955,103430.0,103420.0,0.1426965]
[1737592789962,0.5150955,103430.0,103420.0,0.11268654]
[1737592790369,0.5150955,103430.0,103420.0,0.11168654]
[1737592790591,0.5150955,103430.0,103420.0,0.10568654]
[1737592790752,0.5150955,103430.0,103420.0,0.10064654]
[1737592790975,0.5150955,103430.0,103420.0,0.10868654]
[1737592791175,0.5150955,103430.0,103420.0,0.10768654]
[1737592792428,0.5150955,103430.0,103420.0,0.193795]
[1737592792629,0.5150955,103430.0,103420.0,0.08840771]
[1737592792983,0.5350955,103430.0,103420.0,0.08840771]
[1737592793200,0.5850955,103430.0,103420.0,0.09644771]
[1737592793610,0.5850955,103430.0,103420.0,0.08840771]
[1737592794066,0.5850955,103430.0,103420.0,0.08640771]
[1737592794281,0.5350955,103430.0,103420.0,0.08640771]
[1737592794496,0.5850955,103430.0,103420.0,0.08640771]
[1737592795175,0.5160955,103430.0,103420.0,0.08640771]
[1737592795342,0.5160955,103430.0,103420.0,0.38805259]
[1737592795534,0.5160955,103430.0,103420.0,0.183755]
[1737592795734,0.5160955,103430.0,103420.0,0.29135959]
[1737592795935,0.5160955,103430.0,103420.0,1.683755]
[1737592796595,0.5160955,103430.0,103420.0,1.59764654]
[1737592796784,0.5160955,103430.0,103420.0,0.09764654]
[1737592797223,0.5160955,103430.0,103420.0,1.59764654]
[1737592797421,0.5160955,103430.0,103420.0,0.09764654]
[1737592799386,0.5160955,103430.0,103420.0,0.10564654]
[1737592800543,0.4194125,103430.0,103420.0,0.30994413]
[1737592800677,0.5160955,103430.0,103420.0,0.30994413]
[1737592800883,0.5160955,103430.0,103420.0,0.10564654]
[1737592801089,0.5150955,103430.0,103420.0,0.10564654]
[1737592801946,0.5150955,103430.0,103420.0,0.10764654]
[1737592802150,0.5150955,103430.0,103420.0,0.00229925]
[1737592802389,0.5150955,103430.0,103420.0,0.10764654]
[1737592803052,0.5160955,103430.0,103420.0,0.10764654]
[1737592803296,0.5160955,103430.0,103420.0,0.10564654]
[1737592803617,0.5160955,103430.0,103420.0,0.00829925]
[1737592803835,0.5660955,103430.0,103420.0,0.00829925]
[1737592804245,0.5660955,103430.0,103420.0,0.10564654]
[1737592806603,0.5660955,103430.0,103420.0,0.09764654]
[1737592806836,0.5660955,103430.0,103420.0,0.10604654]
[1737592808519,0.56540951,103430.0,103420.0,0.10604654]
[1737592808719,0.56540951,103430.0,103420.0,0.00869925]
[1737592808953,0.58540951,103430.0,103420.0,0.00869925]
[1737592809152,0.58540951,103430.0,103420.0,0.00029925]
[1737592809428,0.58555201,103430.0,103420.0,0.00869925]
[1737592810076,0.58555201,103430.0,103420.0,0.00029925]
[1737592810486,0.6828993,103430.0,103420.0,0.00029925]
[1737592812012,0.89050389,103430.0,103420.0,0.00029925]
[1737592812716,0.97760181,103430.0,103420.0,0.00029925]
[1737592813564,0.99960181,103430.0,103420.0,0.00029925]
[1737592813785,0.99960181,103430.0,103410.0,0.00050447]
[1737592813786,0.32899759,103420.0,103410.0,0.00050447]
[1737592814062,0.81321868,103420.0,103410.0,0.00050447]
[1737592816536,0.81321868,103420.0,103410.0,0.00150447]
[1737592817021,1.13591868,103420.0,103410.0,0.00150447]
[1737592817689,1.13991868,103420.0,103410.0,0.00150447]
[1737592818195,1.31291868,103420.0,103410.0,4.7e-07]
[1737592821266,1.31291868,103420.0,103410.0,0.00029972]
[1737592821726,1.33286195,103420.0,103410.0,0.00029972]
[1737592827899,1.30986195,103420.0,103410.0,0.00029972]
[1737592829950,1.30986195,103420.0,103410.0,0.0046608]
[1737592830156,1.30986195,103420.0,103410.0,0.00029972]
[1737592830376,1.30986195,103420.0,103410.0,0.00477472]
[1737592833998,1.0851093,103420.0,103410.0,0.00477472]
[1737592834501,1.0851093,103420.0,103410.0,0.03477472]
[1737592834725,1.18871389,103420.0,103410.0,0.03477425]
[1737592835201,1.19171389,103420.0,103410.0,0.03477425]
[1737592835432,1.18871389,103420.0,103410.0,0.03477425]
[1737592836232,1.19171389,103420.0,103410.0,0.03477425]
[1737592839574,1.0841093,103420.0,103410.0,0.03477425]
[1737592840529,1.28906118,103420.0,103410.0,0.03477425]
[1737592841312,1.28906118,103420.0,103410.0,0.00477425]
[1737592841972,1.0841093,103420.0,103410.0,0.00477425]
[1737592842178,1.19171389,103420.0,103410.0,0.00477425]
[1737592843039,1.0841093,103420.0,103410.0,0.00477425]
[1737592843640,1.19171389,103420.0,103410.0,0.00477425]
[1737592846520,1.19171389,103420.0,103410.0,0.03477425]
[1737592847159,1.28906118,103420.0,103410.0,0.03477425]
[1737592847292,1.19171389,103420.0,103410.0,0.03477425]
[1737592848325,1.0841093,103420.0,103410.0,0.03477425]
[1737592849170,1.19171389,103420.0,103410.0,0.03477425]
[1737592850422,1.0841093,103420.0,103410.0,0.03477425]
[1737592850616,1.19171389,103420.0,103410.0,0.03477425]
[1737592850859,1.28906118,103420.0,103410.0,0.03477425]
[1737592852099,1.1041093,103420.0,103410.0,0.03477425]
[1737592852529,0.80776201,103420.0,103410.0,0.03477425]
[1737592852701,0.71206201,103420.0,103410.0,0.11077425]
[1737592852912,0.53936201,103420.0,103410.0,0.11077425]
[1737592853125,0.6367093,103420.0,103410.0,0.03477425]
[1737592853326,0.74431389,103420.0,103410.0,0.03477425]
[1737592853546,0.6669666,103420.0,103410.0,0.03477425]
[1737592853749,0.82341389,103420.0,103410.0,0.03477425]
[1737592856765,0.87031389,103420.0,103410.0,0.03477425]
[1737592857399,0.89031389,103420.0,103410.0,0.03477425]
[1737592857607,0.87031389,103420.0,103410.0,0.03477425]
[1737592857805,0.96766118,103420.0,103410.0,0.03477425]
[1737592860776,0.87031389,103420.0,103410.0,0.03029925]
[1737592861289,0.88938456,103420.0,103410.0,0.03029925]
[1737592861884,0.65753268,103420.0,103410.0,0.03029925]
[1737592864596,0.76513727,103420.0,103410.0,0.03029925]
[1737592865217,0.57843268,103420.0,103410.0,0.03029925]
[1737592866917,0.55936201,103420.0,103410.0,0.03029925]
[1737592867159,0.43936201,103420.0,103410.0,0.03029925]
[1737592867411,0.38936201,103420.0,103410.0,0.11069925]
[1737592867859,0.53936201,103420.0,103410.0,0.11069925]
[1737592868233,0.53936201,103420.0,103410.0,0.20804654]
[1737592868808,0.38936201,103420.0,103410.0,0.31565113]
[1737592869028,0.38936201,103420.0,103410.0,0.56685772]
[1737592869029,0.28966901,103420.0,103410.0,0.56685772]
[1737592869248,0.29166901,103420.0,103410.0,0.62002859]
[1737592869730,0.28966901,103420.0,103410.0,2.012424]
[1737592870211,0.29066901,103420.0,103410.0,2.012424]
[1737592870412,0.29066901,103420.0,103410.0,2.014424]
[1737592870632,0.28966901,103420.0,103410.0,2.014424]
[1737592871280,0.28966901,103420.0,103410.0,2.12202859]
[1737592872627,0.28966901,103420.0,103410.0,0.63189858]
[1737592873200,0.28966901,103420.0,103410.0,2.13189858]
[1737592873548,0.28966901,103420.0,103410.0,0.63189858]
[1737592873948,0.28966901,103420.0,103410.0,0.52429399]
[1737592874629,0.28966901,103420.0,103410.0,0.49412312]
[1737592875490,0.28966901,103420.0,103410.0,0.49212312]
[1737592875693,0.28966901,103420.0,103410.0,0.49712312]
[1737592876659,0.28966901,103420.0,103410.0,0.49912312]
[1737592878082,0.28966901,103420.0,103410.0,0.60672771]
[1737592878284,0.28966901,103420.0,103410.0,0.49912312]
[1737592879392,0.28966901,103420.0,103410.0,0.50340299]
[1737592879595,0.28966901,103420.0,103410.0,0.60672771]
[1737592881054,0.28966901,103420.0,103410.0,2.10672771]
[1737592882198,0.28966901,103420.0,103410.0,1.99912312]
[1737592882529,0.28966901,103420.0,103410.0,2.10672771]
[1737592882949,0.28966901,103420.0,103410.0,1.99912312]
[1737592884086,0.28966901,103420.0,103410.0,0.49912312]
[1737592884630,0.28966901,103420.0,103410.0,1.99912312]
[1737592884998,0.28966901,103420.0,103410.0,2.10672771]
[1737592885200,0.28966901,103420.0,103410.0,2.25672771]
[1737592885406,0.28966901,103420.0,103410.0,2.28899336]
[1737592885853,0.28966901,103420.0,103410.0,2.25672771]
[1737592887622,0.28966901,103420.0,103410.0,0.75672771]
[1737592888077,0.28966901,103420.0,103410.0,2.25672771]
[1737592888634,0.28966901,103420.0,103410.0,2.57663475]
[1737592890840,0.28966901,103420.0,103410.0,1.07663475]
[1737592891348,0.28966901,103420.0,103410.0,2.60665972]
[1737592897015,0.28966901,103420.0,103410.0,0.67914809]
[1737592897213,0.28966901,103420.0,103410.0,0.68710809]
[1737592897451,0.28966901,103420.0,103410.0,0.81461972]
[1737592897684,0.28966901,103420.0,103410.0,2.31461972]
[1737592897887,0.28966901,103420.0,103410.0,1.59492712]
[1737592898290,0.28966901,103420.0,103410.0,1.64492712]
[1737592898456,0.28966901,103420.0,103410.0,3.14492712]
[1737592898659,0.28966901,103420.0,103410.0,3.14942203]
[1737592898860,0.28966901,103420.0,103410.0,3.14242203]
[1737592899109,0.28966901,103420.0,103410.0,3.14442203]
[1737592899319,0.28966901,103420.0,103410.0,3.15142203]
[1737592900920,0.12360001,103420.0,103410.0,3.21409664]
[1737592901085,0.02690501,103420.0,103410.0,3.21409664]
[1737592901283,0.0001425,103430.0,103410.0,3.21409664]
[1737592901284,0.0001425,103450.0,103440.0,0.56658104]
[1737592901488,0.0001425,103450.0,103440.0,1.05986248]
[1737592901701,0.0001425,103450.0,103440.0,1.09655954]
[1737592902009,0.0001425,103450.0,103440.0,2.64655954]
[1737592902434,0.2901525,103450.0,103440.0,2.64655954]
[1737592902843,0.2901525,103450.0,103440.0,2.65355954]
[1737592903402,0.1732175,103450.0,103440.0,2.60355954]
[1737592903626,0.1732175,103450.0,103440.0,2.68355954]
[1737592903830,0.1732175,103450.0,103440.0,2.65129389]
[1737592904255,0.1732175,103450.0,103440.0,2.68555954]
[1737592904472,0.1732175,103450.0,103440.0,2.33338685]
[1737592904646,0.1732175,103450.0,103440.0,2.65129389]
[1737592905088,0.1732175,103450.0,103440.0,2.65229389]
[1737592905438,0.1732175,103450.0,103440.0,2.64529389]
[1737592905683,0.1732175,103450.0,103440.0,2.65229389]
[1737592905891,0.1732175,103450.0,103440.0,2.68455954]
[1737592906229,0.1732175,103450.0,103440.0,3.23748933]
[1737592907133,0.1394375,103450.0,103440.0,3.23748933]
[1737592907622,0.0427725,103450.0,103440.0,3.23748933]
[1737592908108,0.0427725,103450.0,103440.0,3.26690579]
[1737592908456,0.0427725,103450.0,103440.0,3.24734182]
[1737592908816,0.03363,103450.0,103440.0,3.24734182]
[1737592909429,0.02463,103450.0,103440.0,3.24734182]
[1737592910235,0.01769822,103450.0,103440.0,3.24734182]
[1737592910585,2.2e-07,103450.0,103440.0,3.24734182]
[1737592910791,0.0001425,103470.0,103460.0,0.76716204]
[1737592910992,0.0001425,103470.0,103460.0,1.49040629]
[1737592911197,0.2900925,103470.0,103460.0,1.52791776]
[1737592911411,0.2900925,103470.0,103460.0,3.02791776]
[1737592911628,0.2900925,103470.0,103460.0,2.99565211]
[1737592911836,0.2900925,103470.0,103460.0,3.1032567]
[1737592912036,0.29059716,103470.0,103460.0,3.1032567]
[1737592912467,0.29059716,103470.0,103460.0,3.1102567]
[1737592914246,0.29059716,103470.0,103460.0,3.1112567]
[1737592914887,0.29059716,103470.0,103460.0,3.0612567]
[1737592915100,0.29059716,103470.0,103460.0,3.0139567]
[1737592915976,0.29059716,103470.0,103460.0,2.82605211]
[1737592916233,0.29059716,103470.0,103460.0,1.9958127]
[1737592916471,0.29059716,103470.0,103460.0,2.1228127]
[1737592916956,0.29059716,103470.0,103460.0,2.2728127]
[1737592917155,0.29059716,103470.0,103460.0,1.8138527]
[1737592917376,0.37229716,103470.0,103460.0,1.8218127]
[1737592917612,0.37229716,103470.0,103460.0,1.8238127]
[1737592917909,0.37229716,103470.0,103460.0,1.8468127]
[1737592918108,0.37229716,103470.0,103460.0,1.9738127]
[1737592918241,0.37229716,103470.0,103460.0,1.9668127]
[1737592918444,0.37229716,103470.0,103460.0,1.9898127]
[1737592918671,0.37229716,103470.0,103460.0,1.9968127]
[1737592919501,0.37229716,103470.0,103460.0,0.4968127]
[1737592919967,0.37229716,103470.0,103460.0,2.01604632]
[1737592920462,0.37229716,103470.0,103460.0,2.02560781]
[1737592921810,0.46903612,103470.0,103460.0,1.88704322]
[1737592922046,0.51723612,103470.0,103460.0,1.79038822]
[1737592922280,0.51723612,103470.0,103460.0,1.6291146]
[1737592922512,0.51714316,103470.0,103460.0,0.11955311]
[1737592922702,0.51714316,103470.0,103460.0,0.11755311]
[1737592922827,0.51714316,103470.0,103460.0,0.11055311]
[1737592923347,0.51714316,103470.0,103460.0,0.11255311]
[1737592924633,0.51714316,103470.0,103460.0,0.11155311]
[1737592924828,0.51714316,103470.0,103460.0,0.00624582]
[1737592925028,0.67474775,103470.0,103460.0,0.01360582]
[1737592925232,0.56714316,103470.0,103460.0,0.01360582]
[1737592925452,0.69574775,103470.0,103460.0,0.00524582]
[1737592925658,0.226365,103450.0,103440.0,0.03029904]
[1737592925892,0.516315,103450.0,103440.0,0.13600633]
[1737592926094,0.41974296,103450.0,103440.0,0.34028492]
[1737592926290,0.41974296,103450.0,103440.0,0.31028492]
[1737592926529,0.41965,103450.0,103440.0,0.31028492]
[1737592926765,0.41974296,103450.0,103440.0,0.31028492]
[1737592927031,0.516315,103450.0,103440.0,0.09764633]
[1737592927262,0.516315,103450.0,103440.0,0.10600633]
[1737592927457,0.516315,103450.0,103440.0,0.00865904]
[1737592928049,0.516315,103450.0,103440.0,0.00965904]
[1737592928659,0.516315,103450.0,103440.0,0.01565904]
[1737592928831,0.516315,103450.0,103440.0,0.01465904]
[1737592929039,0.516315,103450.0,103440.0,0.00865904]
[1737592929251,0.566315,103450.0,103440.0,0.01165904]
[1737592933214,0.566315,103450.0,103440.0,0.01599248]
[1737592939588,0.566315,103450.0,103440.0,0.00763248]
[1737592939802,0.566315,103450.0,103440.0,0.01599248]
[1737592940213,0.516315,103450.0,103440.0,0.01599248]
[1737592940423,0.51640796,103450.0,103440.0,0.01599248]
[1737592940636,0.516315,103450.0,103440.0,0.01599248]
[1737592941543,0.566315,103450.0,103440.0,0.01599248]
[1737592941962,0.84391959,103450.0,103440.0,0.01599248]
[1737592943168,0.84391959,103450.0,103440.0,0.01299248]
[1737592943531,0.84391959,103450.0,103440.0,0.00463248]
[1737592943532,0.94126688,103450.0,103440.0,0.00463248]
[1737592943740,1.29131417,103450.0,103440.0,0.00463248]
[1737592943952,1.29331417,103450.0,103440.0,0.00448094]
[1737592944185,1.29331417,103450.0,103440.0,9.4e-07]
[1737592944380,0.222993,103420.0,103410.0,0.00865925]
[1737592944559,0.512943,103420.0,103410.0,0.00865925]
[1737592945597,0.51344735,103420.0,103410.0,0.00865925]
[1737592946220,0.51344735,103420.0,103410.0,0.01065925]
[1737592947492,0.93839923,103420.0,103410.0,0.00229925]